[Event "Titled Tuesday Blitz May 23 Late 2023"]
[White "Chlpik, Martin"]
[Black "Kovalevsky, Stanislav"]
[WhiteFideId "14923351"]
[BlackFideId "13508598"]
[WhiteElo "2109"]
[BlackElo "2174"]
[Result "0-1"]
[Round "02"]
[TimeControl "180+2"]
[Date "2023.05.23"]
[WhiteClock "0:00:53"]
[BlackClock "0:02:00"]

1. d4 {[%clk 0:03:00]}  Nf6 {[%clk 0:02:59]} 2. Nf3 {[%clk 0:03:01]}  e6 {[%clk 0:03:00]} 3. e3 {[%clk 0:03:01]}  d5 {[%clk 0:03:00]} 4. Be2 {[%clk 0:03:01]}  Nbd7 {[%clk 0:03:00]} 5. O-O {[%clk 0:03:02]}  Bd6 {[%clk 0:03:01]} 6. b3 {[%clk 0:03:02]}  e5 {[%clk 0:03:01]} 7. dxe5 {[%clk 0:02:59]}  Nxe5 {[%clk 0:03:02]} 8. Bb2 {[%clk 0:02:59]}  Qe7 {[%clk 0:03:00]} 9. Nbd2 {[%clk 0:02:59]}  O-O {[%clk 0:02:58]} 10. c4 {[%clk 0:02:58]}  c6 {[%clk 0:02:55]} 11. Rc1 {[%clk 0:02:55]}  a5 {[%clk 0:02:51]} 12. cxd5 {[%clk 0:02:52]}  Nxd5 {[%clk 0:02:51]} 13. Nc4 {[%clk 0:02:36]}  Nxc4 {[%clk 0:02:45]} 14. Bxc4 {[%clk 0:02:26]}  Bg4 {[%clk 0:02:15]} 15. Qd4 {[%clk 0:02:22]}  Nf6 {[%clk 0:02:14]} 16. e4 {[%clk 0:01:57]}  Bxf3 {[%clk 0:02:08]} 17. gxf3 {[%clk 0:01:53]}  Bf4 {[%clk 0:02:02]} 18. e5 {[%clk 0:01:36]}  Nh5 {[%clk 0:02:02]} 19. e6 {[%clk 0:01:07]}  Qg5+ {[%clk 0:02:00]} 20. Kh1 {[%clk 0:00:53]}  Qh4 {[%clk 0:02:00]} 0-1


[Site "https://www.chess.com"]

[Event "Titled Tuesday Blitz May 23 Late 2023"]
[White "D`Arruda, Ricardo D."]
[Black "Prithu Gupta"]
[WhiteFideId "100692"]
[BlackFideId "46618546"]
[WhiteElo "2439"]
[BlackElo "2344"]
[Result "1-0"]
[Round "02"]
[TimeControl "180+2"]
[Date "2023.05.23"]
[WhiteClock "0:00:47"]
[BlackClock "0:00:00"]

1. d4 {[%clk 0:02:59]}  Nf6 {[%clk 0:02:59]} 2. Nf3 {[%clk 0:02:58]}  e6 {[%clk 0:02:59]} 3. g3 {[%clk 0:02:59]}  b5 {[%clk 0:02:59]} 4. Bg2 {[%clk 0:03:00]}  Bb7 {[%clk 0:02:59]} 5. O-O {[%clk 0:03:01]}  Be7 {[%clk 0:02:59]} 6. Bf4 {[%clk 0:02:58]}  O-O {[%clk 0:02:59]} 7. a4 {[%clk 0:02:57]}  b4 {[%clk 0:02:58]} 8. c4 {[%clk 0:02:55]}  a5 {[%clk 0:02:58]} 9. h3 {[%clk 0:02:51]}  d6 {[%clk 0:02:58]} 10. Nbd2 {[%clk 0:02:50]}  Nbd7 {[%clk 0:02:58]} 11. g4 {[%clk 0:02:50]}  c5 {[%clk 0:02:58]} 12. e3 {[%clk 0:02:50]}  Rc8 {[%clk 0:02:50]} 13. Re1 {[%clk 0:02:48]}  Qb6 {[%clk 0:02:49]} 14. Rc1 {[%clk 0:02:46]}  d5 {[%clk 0:02:45]} 15. dxc5 {[%clk 0:02:35]}  Nxc5 {[%clk 0:02:45]} 16. Ne5 {[%clk 0:02:21]}  Rfd8 {[%clk 0:02:41]} 17. cxd5 {[%clk 0:02:17]}  Nxd5 {[%clk 0:02:39]} 18. Ndc4 {[%clk 0:02:15]}  Qa7 {[%clk 0:02:34]} 19. Qe2 {[%clk 0:02:10]}  Nxa4 {[%clk 0:02:24]} 20. Bg3 {[%clk 0:02:04]}  Nc5 {[%clk 0:02:21]} 21. Ra1 {[%clk 0:02:02]}  Nb3 {[%clk 0:02:21]} 22. Rad1 {[%clk 0:02:01]}  Ba6 {[%clk 0:02:19]} 23. Qf3 {[%clk 0:02:01]}  Bxc4 {[%clk 0:02:17]} 24. Qxf7+ {[%clk 0:02:00]}  Kh8 {[%clk 0:02:16]} 25. Nxc4 {[%clk 0:01:58]}  Rxc4 {[%clk 0:02:00]} 26. Qxe6 {[%clk 0:01:57]}  Nc5 {[%clk 0:00:13]} 27. Qf7 {[%clk 0:01:54]}  Rf8 {[%clk 0:00:12]} 28. Qxd5 {[%clk 0:01:54]}  Rc2 {[%clk 0:00:13]} 29. b3 {[%clk 0:01:39]}  a4 {[%clk 0:00:12]} 30. bxa4 {[%clk 0:01:26]}  b3 {[%clk 0:00:12]} 31. Qd4 {[%clk 0:00:49]}  b2 {[%clk 0:00:12]} 32. Be5 {[%clk 0:00:48]}  Kg8 {[%clk 0:00:00]} 33. Bd5+ {[%clk 0:00:47]} 1-0


[Site "https://www.chess.com"]

[Event "Titled Tuesday Blitz May 23 Late 2023"]
[White "Wizard_of_Odds"]
[Black "Fuentes Godoy, Lilia Ivonne"]
[BlackFideId "5104130"]
[WhiteElo "2437"]
[BlackElo "2096"]
[Result "1-0"]
[Round "02"]
[TimeControl "180+2"]
[Date "2023.05.23"]
[WhiteClock "0:01:14"]
[BlackClock "0:01:00"]

1. d4 {[%clk 0:02:59]}  d5 {[%clk 0:02:59]} 2. c4 {[%clk 0:02:59]}  e6 {[%clk 0:03:00]} 3. Nc3 {[%clk 0:02:58]}  c6 {[%clk 0:03:00]} 4. cxd5 {[%clk 0:02:56]}  exd5 {[%clk 0:03:00]} 5. Bf4 {[%clk 0:02:56]}  Nf6 {[%clk 0:02:59]} 6. e3 {[%clk 0:02:56]}  g6 {[%clk 0:03:00]} 7. Bd3 {[%clk 0:02:50]}  Bg7 {[%clk 0:03:00]} 8. h3 {[%clk 0:02:50]}  O-O {[%clk 0:03:00]} 9. Nf3 {[%clk 0:02:47]}  Re8 {[%clk 0:03:00]} 10. Qc2 {[%clk 0:02:46]}  Nbd7 {[%clk 0:02:43]} 11. O-O {[%clk 0:02:44]}  Nh5 {[%clk 0:02:39]} 12. Bh2 {[%clk 0:02:43]}  f5 {[%clk 0:02:40]} 13. Qb3 {[%clk 0:02:18]}  Qb6 {[%clk 0:02:37]} 14. Qxb6 {[%clk 0:02:16]}  axb6 {[%clk 0:02:37]} 15. a4 {[%clk 0:02:14]}  Nhf6 {[%clk 0:02:37]} 16. Ne5 {[%clk 0:01:59]}  Ne4 {[%clk 0:02:36]} 17. Nxd7 {[%clk 0:01:55]}  Bxd7 {[%clk 0:02:37]} 18. Bc7 {[%clk 0:01:43]}  Nxf2 {[%clk 0:02:00]} 19. Kxf2 {[%clk 0:01:29]}  Bh6 {[%clk 0:02:00]} 20. Rfe1 {[%clk 0:01:28]}  Re6 {[%clk 0:01:40]} 21. Re2 {[%clk 0:01:22]}  Rae8 {[%clk 0:01:40]} 22. Rae1 {[%clk 0:01:21]}  Bf8 {[%clk 0:01:08]} 23. Bxb6 {[%clk 0:01:18]}  Bb4 {[%clk 0:01:02]} 24. Bc5 {[%clk 0:01:14]}  Bxc5 {[%clk 0:01:00]} 25. dxc5 {[%clk 0:01:14]} 1-0


[Site "https://www.chess.com"]

[Event "Titled Tuesday Blitz May 23 Late 2023"]
[White "QuiesPrecatio"]
[Black "Kev4444444444"]
[WhiteElo "2435"]
[BlackElo "2158"]
[Result "1-0"]
[Round "02"]
[TimeControl "180+2"]
[Date "2023.05.23"]
[WhiteClock "0:00:07"]
[BlackClock "0:00:05"]

1. d4 {[%clk 0:02:58]}  d5 {[%clk 0:02:59]} 2. c4 {[%clk 0:02:57]}  c6 {[%clk 0:02:59]} 3. Nf3 {[%clk 0:02:55]}  Nf6 {[%clk 0:03:00]} 4. Nc3 {[%clk 0:02:53]}  e6 {[%clk 0:02:58]} 5. e3 {[%clk 0:02:51]}  Nbd7 {[%clk 0:02:57]} 6. b3 {[%clk 0:02:51]}  Bd6 {[%clk 0:02:56]} 7. Bd3 {[%clk 0:02:52]}  O-O {[%clk 0:02:56]} 8. O-O {[%clk 0:02:51]}  Qe7 {[%clk 0:02:45]} 9. Qe2 {[%clk 0:02:36]}  dxc4 {[%clk 0:02:40]} 10. bxc4 {[%clk 0:02:34]}  e5 {[%clk 0:02:39]} 11. c5 {[%clk 0:02:00]}  Bc7 {[%clk 0:02:39]} 12. Bc4 {[%clk 0:01:56]}  exd4 {[%clk 0:02:22]} 13. exd4 {[%clk 0:01:53]}  Qxe2 {[%clk 0:02:18]} 14. Bxe2 {[%clk 0:01:50]}  Nd5 {[%clk 0:02:06]} 15. Nxd5 {[%clk 0:01:45]}  cxd5 {[%clk 0:02:06]} 16. Bg5 {[%clk 0:01:45]}  Nb8 {[%clk 0:01:58]} 17. Bb5 {[%clk 0:01:37]}  Nc6 {[%clk 0:01:57]} 18. h3 {[%clk 0:01:29]}  Bd7 {[%clk 0:01:57]} 19. Rab1 {[%clk 0:01:26]}  Rab8 {[%clk 0:01:56]} 20. Rfe1 {[%clk 0:01:26]}  Rfe8 {[%clk 0:01:55]} 21. Rxe8+ {[%clk 0:01:25]}  Bxe8 {[%clk 0:01:55]} 22. Be3 {[%clk 0:01:22]}  f6 {[%clk 0:01:54]} 23. Ne1 {[%clk 0:01:18]}  Bg6 {[%clk 0:01:48]} 24. Bd3 {[%clk 0:01:17]}  Bxd3 {[%clk 0:01:30]} 25. Nxd3 {[%clk 0:01:18]}  b6 {[%clk 0:01:31]} 26. Rc1 {[%clk 0:00:52]}  Na5 {[%clk 0:01:29]} 27. Bf4 {[%clk 0:00:28]}  Bxf4 {[%clk 0:00:59]} 28. Nxf4 {[%clk 0:00:29]}  Rd8 {[%clk 0:00:30]} 29. c6 {[%clk 0:00:28]}  Kf7 {[%clk 0:00:27]} 30. c7 {[%clk 0:00:26]}  Rc8 {[%clk 0:00:27]} 31. Nxd5 {[%clk 0:00:24]}  Ke6 {[%clk 0:00:28]} 32. Nb4 {[%clk 0:00:13]}  Kd6 {[%clk 0:00:21]} 33. Na6 {[%clk 0:00:13]}  b5 {[%clk 0:00:20]} 34. Rc5 {[%clk 0:00:07]}  Nc6 {[%clk 0:00:17]} 35. Rxb5 {[%clk 0:00:05]}  Nxd4 {[%clk 0:00:18]} 36. Rb8 {[%clk 0:00:06]}  Kd7 {[%clk 0:00:18]} 37. Rb7 {[%clk 0:00:06]}  Nc6 {[%clk 0:00:17]} 38. Kf1 {[%clk 0:00:04]}  Ne7 {[%clk 0:00:18]} 39. Rxa7 {[%clk 0:00:03]}  Nd5 {[%clk 0:00:18]} 40. Rb7 {[%clk 0:00:03]}  Kc6 {[%clk 0:00:16]} 41. Rb8 {[%clk 0:00:03]}  Ne7 {[%clk 0:00:08]} 42. Ke2 {[%clk 0:00:03]}  Kd7 {[%clk 0:00:08]} 43. Kd3 {[%clk 0:00:02]}  g6 {[%clk 0:00:08]} 44. Kc4 {[%clk 0:00:02]}  Kc6 {[%clk 0:00:09]} 45. Rxc8 {[%clk 0:00:02]}  Nxc8 {[%clk 0:00:09]} 46. a4 {[%clk 0:00:03]}  Kb6 {[%clk 0:00:10]} 47. Nb4 {[%clk 0:00:03]}  Kxc7 {[%clk 0:00:10]} 48. Nd5+ {[%clk 0:00:03]}  Kd6 {[%clk 0:00:11]} 49. Nxf6 {[%clk 0:00:04]}  Nb6+ {[%clk 0:00:11]} 50. Kb5 {[%clk 0:00:04]}  Nc8 {[%clk 0:00:10]} 51. a5 {[%clk 0:00:05]}  h6 {[%clk 0:00:09]} 52. a6 {[%clk 0:00:04]}  Kc7 {[%clk 0:00:08]} 53. Nd5+ {[%clk 0:00:04]}  Kd6 {[%clk 0:00:08]} 54. Nb6 {[%clk 0:00:04]}  Na7+ {[%clk 0:00:08]} 55. Ka5 {[%clk 0:00:05]}  Kc5 {[%clk 0:00:08]} 56. Nd7+ {[%clk 0:00:04]}  Kd6 {[%clk 0:00:09]} 57. Nf8 {[%clk 0:00:05]}  g5 {[%clk 0:00:09]} 58. Kb6 {[%clk 0:00:05]}  Nc8+ {[%clk 0:00:09]} 59. Kb7 {[%clk 0:00:06]}  Ne7 {[%clk 0:00:05]} 60. a7 {[%clk 0:00:07]} 1-0


[Site "https://www.chess.com"]

[Event "Titled Tuesday Blitz May 23 Late 2023"]
[White "Gurevich, Dmitry"]
[Black "ritanovikova"]
[WhiteFideId "2000407"]
[WhiteElo "2506"]
[BlackElo "2153"]
[Result "1-0"]
[Round "02"]
[TimeControl "180+2"]
[Date "2023.05.23"]
[WhiteClock "0:00:10"]
[BlackClock "0:00:00"]

1. d4 {[%clk 0:03:00]}  e5 {[%clk 0:02:58]} 2. dxe5 {[%clk 0:02:59]}  Nc6 {[%clk 0:02:58]} 3. Nf3 {[%clk 0:02:59]}  Qe7 {[%clk 0:02:58]} 4. Bf4 {[%clk 0:02:57]}  Qb4+ {[%clk 0:02:58]} 5. Bd2 {[%clk 0:02:55]}  Qxb2 {[%clk 0:02:58]} 6. Nc3 {[%clk 0:02:53]}  Bb4 {[%clk 0:02:59]} 7. Rb1 {[%clk 0:02:51]}  Qa3 {[%clk 0:02:59]} 8. Rb3 {[%clk 0:02:51]}  Qa5 {[%clk 0:02:59]} 9. a3 {[%clk 0:02:50]}  Bxc3 {[%clk 0:02:58]} 10. Bxc3 {[%clk 0:02:49]}  Qa4 {[%clk 0:02:54]} 11. e3 {[%clk 0:02:44]}  Nge7 {[%clk 0:02:48]} 12. Bb5 {[%clk 0:02:42]}  Qg4 {[%clk 0:02:47]} 13. O-O {[%clk 0:02:39]}  O-O {[%clk 0:02:45]} 14. h3 {[%clk 0:02:39]}  Qh5 {[%clk 0:02:41]} 15. Be2 {[%clk 0:02:37]}  b6 {[%clk 0:02:15]} 16. Nd4 {[%clk 0:02:31]}  Qh6 {[%clk 0:02:06]} 17. Nb5 {[%clk 0:02:25]}  d5 {[%clk 0:01:26]} 18. Nxc7 {[%clk 0:02:14]}  Be6 {[%clk 0:01:14]} 19. f4 {[%clk 0:01:56]}  Rac8 {[%clk 0:01:09]} 20. Nxe6 {[%clk 0:01:50]}  fxe6 {[%clk 0:01:10]} 21. Bb2 {[%clk 0:01:23]}  Nf5 {[%clk 0:01:06]} 22. Bg4 {[%clk 0:01:18]}  Na5 {[%clk 0:00:56]} 23. Rd3 {[%clk 0:01:14]}  Nc4 {[%clk 0:00:54]} 24. Bc1 {[%clk 0:01:12]}  Qh4 {[%clk 0:00:43]} 25. Bxf5 {[%clk 0:01:09]}  Rxf5 {[%clk 0:00:42]} 26. Qe1 {[%clk 0:01:05]}  Qe7 {[%clk 0:00:41]} 27. g4 {[%clk 0:01:00]}  Rf7 {[%clk 0:00:38]} 28. Qb4 {[%clk 0:00:59]}  Qh4 {[%clk 0:00:34]} 29. Kg2 {[%clk 0:00:58]}  g5 {[%clk 0:00:29]} 30. Qe1 {[%clk 0:00:55]}  Qh6 {[%clk 0:00:26]} 31. Qg3 {[%clk 0:00:55]}  Rcf8 {[%clk 0:00:24]} 32. Rd4 {[%clk 0:00:49]}  Qg6 {[%clk 0:00:23]} 33. Rf2 {[%clk 0:00:40]}  h5 {[%clk 0:00:19]} 34. gxh5 {[%clk 0:00:33]}  Qxh5 {[%clk 0:00:16]} 35. h4 {[%clk 0:00:31]}  g4 {[%clk 0:00:15]} 36. e4 {[%clk 0:00:28]}  Rh7 {[%clk 0:00:11]} 37. exd5 {[%clk 0:00:26]}  exd5 {[%clk 0:00:11]} 38. f5 {[%clk 0:00:24]}  Rg7 {[%clk 0:00:07]} 39. f6 {[%clk 0:00:23]}  Rg6 {[%clk 0:00:07]} 40. Bg5 {[%clk 0:00:23]}  b5 {[%clk 0:00:05]} 41. Rxg4 {[%clk 0:00:22]}  Kh7 {[%clk 0:00:04]} 42. e6 {[%clk 0:00:20]}  Ne5 {[%clk 0:00:03]} 43. e7 {[%clk 0:00:19]}  Re8 {[%clk 0:00:02]} 44. f7 {[%clk 0:00:18]}  Nxf7 {[%clk 0:00:01]} 45. Rxf7+ {[%clk 0:00:17]}  Kh8 {[%clk 0:00:02]} 46. Bf6+ {[%clk 0:00:16]}  Rxf6 {[%clk 0:00:02]} 47. Rxf6 {[%clk 0:00:16]}  Rxe7 {[%clk 0:00:01]} 48. Rf8+ {[%clk 0:00:14]}  Kh7 {[%clk 0:00:01]} 49. Qd3+ {[%clk 0:00:13]}  Kh6 {[%clk 0:00:01]} 50. Qd2+ {[%clk 0:00:12]}  Kh7 {[%clk 0:00:01]} 51. Qd3+ {[%clk 0:00:11]}  Kh6 {[%clk 0:00:00]} 52. Rh8+ {[%clk 0:00:10]} 1-0


[Site "https://www.chess.com"]

[Event "Titled Tuesday Blitz May 23 Late 2023"]
[White "Djordjevic, Dejan N"]
[Black "SergioMoralesG"]
[WhiteFideId "913316"]
[WhiteElo "2261"]
[BlackElo "2429"]
[Result "0-1"]
[Round "02"]
[TimeControl "180+2"]
[Date "2023.05.23"]
[WhiteClock "0:00:00"]
[BlackClock "0:00:03"]

1. e4 {[%clk 0:03:00]}  c5 {[%clk 0:02:59]} 2. Nc3 {[%clk 0:03:00]}  Nc6 {[%clk 0:02:59]} 3. g3 {[%clk 0:03:00]}  g6 {[%clk 0:02:58]} 4. Bg2 {[%clk 0:03:01]}  Bg7 {[%clk 0:02:58]} 5. Nge2 {[%clk 0:03:01]}  e6 {[%clk 0:02:58]} 6. O-O {[%clk 0:03:02]}  Nge7 {[%clk 0:02:58]} 7. h3 {[%clk 0:03:02]}  d5 {[%clk 0:02:54]} 8. exd5 {[%clk 0:02:58]}  exd5 {[%clk 0:02:55]} 9. d3 {[%clk 0:02:57]}  h6 {[%clk 0:02:48]} 10. Re1 {[%clk 0:02:54]}  O-O {[%clk 0:02:48]} 11. Nf4 {[%clk 0:02:53]}  d4 {[%clk 0:02:41]} 12. Na4 {[%clk 0:02:33]}  b6 {[%clk 0:02:39]} 13. b3 {[%clk 0:02:33]}  Bb7 {[%clk 0:02:34]} 14. Nb2 {[%clk 0:02:32]}  Qc7 {[%clk 0:02:25]} 15. a4 {[%clk 0:02:31]}  Nb4 {[%clk 0:02:23]} 16. Bxb7 {[%clk 0:02:17]}  Qxb7 {[%clk 0:02:24]} 17. Bd2 {[%clk 0:02:17]}  Nbd5 {[%clk 0:02:20]} 18. Nc4 {[%clk 0:02:16]}  Rad8 {[%clk 0:02:15]} 19. Qf3 {[%clk 0:02:15]}  Rfe8 {[%clk 0:01:56]} 20. Ne5 {[%clk 0:01:50]}  Nf5 {[%clk 0:01:27]} 21. Nc4 {[%clk 0:01:35]}  Nfe7 {[%clk 0:01:03]} 22. Re2 {[%clk 0:01:32]}  Qd7 {[%clk 0:00:58]} 23. Rae1 {[%clk 0:01:30]}  Nxf4 {[%clk 0:00:52]} 24. Bxf4 {[%clk 0:01:29]}  Nc6 {[%clk 0:00:45]} 25. Kh2 {[%clk 0:00:53]}  Nb4 {[%clk 0:00:38]} 26. Nd6 {[%clk 0:00:34]}  Rxe2 {[%clk 0:00:37]} 27. Rxe2 {[%clk 0:00:34]}  Bf8 {[%clk 0:00:35]} 28. Ne4 {[%clk 0:00:26]}  Bg7 {[%clk 0:00:16]} 29. Bxh6 {[%clk 0:00:24]}  Qf5 {[%clk 0:00:16]} 30. Qxf5 {[%clk 0:00:22]}  gxf5 {[%clk 0:00:16]} 31. Bxg7 {[%clk 0:00:22]}  fxe4 {[%clk 0:00:14]} 32. Bf6 {[%clk 0:00:19]}  exd3 {[%clk 0:00:13]} 33. cxd3 {[%clk 0:00:18]}  Rd6 {[%clk 0:00:13]} 34. Bg5 {[%clk 0:00:16]}  Nxd3 {[%clk 0:00:12]} 35. h4 {[%clk 0:00:16]}  Nb4 {[%clk 0:00:11]} 36. h5 {[%clk 0:00:13]}  d3 {[%clk 0:00:11]} 37. Rd2 {[%clk 0:00:12]}  a6 {[%clk 0:00:10]} 38. Kg2 {[%clk 0:00:11]}  b5 {[%clk 0:00:10]} 39. axb5 {[%clk 0:00:10]}  axb5 {[%clk 0:00:11]} 40. Be7 {[%clk 0:00:10]}  Rd5 {[%clk 0:00:10]} 41. g4 {[%clk 0:00:09]}  Nc6 {[%clk 0:00:10]} 42. Bf6 {[%clk 0:00:08]}  c4 {[%clk 0:00:09]} 43. bxc4 {[%clk 0:00:08]}  bxc4 {[%clk 0:00:10]} 44. f4 {[%clk 0:00:08]}  Nd4 {[%clk 0:00:10]} 45. Kf2 {[%clk 0:00:07]}  Nb3 {[%clk 0:00:08]} 46. Ra2 {[%clk 0:00:06]}  Ra5 {[%clk 0:00:06]} 47. Rb2 {[%clk 0:00:00]}  Kh7 {[%clk 0:00:03]} 0-1


[Site "https://www.chess.com"]

[Event "Titled Tuesday Blitz May 23 Late 2023"]
[White "Florianovitz, Derlei Alex"]
[Black "Dudzinski, Pawel"]
[WhiteFideId "2114178"]
[BlackFideId "1117890"]
[WhiteElo "1953"]
[BlackElo "2099"]
[Result "0-1"]
[Round "02"]
[TimeControl "180+2"]
[Date "2023.05.23"]
[WhiteClock "0:01:56"]
[BlackClock "0:01:49"]

1. e4 {[%clk 0:03:00]}  c6 {[%clk 0:02:59]} 2. d4 {[%clk 0:02:59]}  d5 {[%clk 0:03:00]} 3. exd5 {[%clk 0:02:58]}  cxd5 {[%clk 0:03:01]} 4. c4 {[%clk 0:02:58]}  Nf6 {[%clk 0:03:01]} 5. Nc3 {[%clk 0:02:58]}  g6 {[%clk 0:03:01]} 6. Nf3 {[%clk 0:02:58]}  Bg7 {[%clk 0:03:01]} 7. Bf4 {[%clk 0:02:56]}  O-O {[%clk 0:03:00]} 8. c5 {[%clk 0:02:55]}  Nc6 {[%clk 0:02:59]} 9. a3 {[%clk 0:02:53]}  Ne4 {[%clk 0:02:58]} 10. Rc1 {[%clk 0:02:50]}  Nxc3 {[%clk 0:02:55]} 11. Rxc3 {[%clk 0:02:49]}  Bg4 {[%clk 0:02:55]} 12. Rd3 {[%clk 0:02:37]}  Bxf3 {[%clk 0:02:55]} 13. gxf3 {[%clk 0:02:37]}  e5 {[%clk 0:02:54]} 14. dxe5 {[%clk 0:02:32]}  Nxe5 {[%clk 0:02:54]} 15. Bxe5 {[%clk 0:02:30]}  Bxe5 {[%clk 0:02:55]} 16. Rxd5 {[%clk 0:02:30]}  Qf6 {[%clk 0:02:47]} 17. Be2 {[%clk 0:02:27]}  Bxb2 {[%clk 0:02:44]} 18. h4 {[%clk 0:02:22]}  Rad8 {[%clk 0:02:33]} 19. h5 {[%clk 0:02:12]}  Rxd5 {[%clk 0:01:59]} 20. Qxd5 {[%clk 0:02:13]}  Rd8 {[%clk 0:01:59]} 21. Qxb7 {[%clk 0:02:08]}  Bxa3 {[%clk 0:01:56]} 22. hxg6 {[%clk 0:01:56]}  Qa1+ {[%clk 0:01:49]} 0-1


[Site "https://www.chess.com"]

[Event "Titled Tuesday Blitz May 23 Late 2023"]
[White "Osiecki, Stanislaw"]
[Black "Mikhalsky, Vladimir"]
[WhiteFideId "1102990"]
[BlackFideId "14144352"]
[WhiteElo "2088"]
[BlackElo "2236"]
[Result "0-1"]
[Round "02"]
[TimeControl "180+2"]
[Date "2023.05.23"]
[WhiteClock "0:00:00"]
[BlackClock "0:00:25"]

1. e4 {[%clk 0:03:00]}  g6 {[%clk 0:02:59]} 2. d4 {[%clk 0:03:00]}  Bg7 {[%clk 0:02:58]} 3. Bc4 {[%clk 0:03:00]}  e6 {[%clk 0:02:58]} 4. d5 {[%clk 0:02:58]}  Ne7 {[%clk 0:02:50]} 5. Bg5 {[%clk 0:02:56]}  h6 {[%clk 0:02:49]} 6. Bxe7 {[%clk 0:02:54]}  Qxe7 {[%clk 0:02:49]} 7. Nc3 {[%clk 0:02:54]}  a6 {[%clk 0:02:44]} 8. Bb3 {[%clk 0:02:53]}  O-O {[%clk 0:02:39]} 9. Nge2 {[%clk 0:02:51]}  b5 {[%clk 0:02:36]} 10. a3 {[%clk 0:02:50]}  c5 {[%clk 0:02:32]} 11. d6 {[%clk 0:02:40]}  Qg5 {[%clk 0:02:30]} 12. O-O {[%clk 0:02:38]}  Bb7 {[%clk 0:02:28]} 13. f4 {[%clk 0:02:37]}  Qh4 {[%clk 0:02:24]} 14. g3 {[%clk 0:02:36]}  Qh3 {[%clk 0:02:22]} 15. Rf2 {[%clk 0:02:19]}  b4 {[%clk 0:02:16]} 16. axb4 {[%clk 0:02:18]}  cxb4 {[%clk 0:02:16]} 17. Na2 {[%clk 0:02:18]}  a5 {[%clk 0:02:06]} 18. e5 {[%clk 0:02:13]}  h5 {[%clk 0:02:02]} 19. Qf1 {[%clk 0:02:12]}  Qg4 {[%clk 0:01:58]} 20. h3 {[%clk 0:01:49]}  Qf5 {[%clk 0:01:58]} 21. Kh2 {[%clk 0:01:22]}  Nc6 {[%clk 0:01:48]} 22. Bc4 {[%clk 0:00:50]}  Qxc2 {[%clk 0:01:41]} 23. b3 {[%clk 0:00:43]}  a4 {[%clk 0:01:25]} 24. Nd4 {[%clk 0:00:34]}  Nxd4 {[%clk 0:01:24]} 25. Rxc2 {[%clk 0:00:33]}  Nxc2 {[%clk 0:01:24]} 26. bxa4 {[%clk 0:00:28]}  Nxa1 {[%clk 0:01:22]} 27. Qxa1 {[%clk 0:00:27]}  Rxa4 {[%clk 0:01:21]} 28. Qb2 {[%clk 0:00:27]}  Bc6 {[%clk 0:01:17]} 29. Bb3 {[%clk 0:00:27]}  Ra5 {[%clk 0:00:50]} 30. Nxb4 {[%clk 0:00:26]}  Rc8 {[%clk 0:00:50]} 31. Nxc6 {[%clk 0:00:25]}  Rxc6 {[%clk 0:00:49]} 32. g4 {[%clk 0:00:19]}  hxg4 {[%clk 0:00:47]} 33. hxg4 {[%clk 0:00:18]}  g5 {[%clk 0:00:47]} 34. Qd2 {[%clk 0:00:15]}  Ra3 {[%clk 0:00:44]} 35. Qb2 {[%clk 0:00:08]}  Ra5 {[%clk 0:00:36]} 36. Qd2 {[%clk 0:00:07]}  Rac5 {[%clk 0:00:36]} 37. fxg5 {[%clk 0:00:06]}  Bxe5+ {[%clk 0:00:35]} 38. Kg2 {[%clk 0:00:06]}  Rxd6 {[%clk 0:00:34]} 39. Qe3 {[%clk 0:00:04]}  Bd4 {[%clk 0:00:30]} 40. Qe4 {[%clk 0:00:00]}  Rxg5 {[%clk 0:00:25]} 0-1


[Site "https://www.chess.com"]

[Event "Titled Tuesday Blitz May 23 Late 2023"]
[White "Blackwhite017"]
[Black "Kirillov, Dmitry"]
[BlackFideId "34180572"]
[WhiteElo "2099"]
[BlackElo "2161"]
[Result "0-1"]
[Round "02"]
[TimeControl "180+2"]
[Date "2023.05.23"]
[WhiteClock "0:01:17"]
[BlackClock "0:02:00"]

1. e4 {[%clk 0:02:58]}  c6 {[%clk 0:02:58]} 2. Nf3 {[%clk 0:02:57]}  d5 {[%clk 0:02:59]} 3. exd5 {[%clk 0:02:58]}  cxd5 {[%clk 0:03:00]} 4. Ne5 {[%clk 0:02:58]}  Nc6 {[%clk 0:03:01]} 5. d4 {[%clk 0:02:58]}  Nf6 {[%clk 0:02:59]} 6. c3 {[%clk 0:02:55]}  e6 {[%clk 0:02:59]} 7. Bd3 {[%clk 0:02:55]}  Bd6 {[%clk 0:02:57]} 8. f4 {[%clk 0:02:55]}  Qb6 {[%clk 0:02:56]} 9. Qe2 {[%clk 0:02:38]}  O-O {[%clk 0:02:55]} 10. O-O {[%clk 0:02:35]}  Bd7 {[%clk 0:02:34]} 11. Kh1 {[%clk 0:02:29]}  Rae8 {[%clk 0:02:30]} 12. Nd2 {[%clk 0:02:28]}  Qc7 {[%clk 0:02:26]} 13. Ndf3 {[%clk 0:02:27]}  Ne7 {[%clk 0:02:26]} 14. Bd2 {[%clk 0:02:08]}  Bc6 {[%clk 0:02:23]} 15. g4 {[%clk 0:02:06]}  Ne4 {[%clk 0:02:18]} 16. Bxe4 {[%clk 0:01:31]}  dxe4 {[%clk 0:02:17]} 17. Ng5 {[%clk 0:01:32]}  e3+ {[%clk 0:02:00]} 18. Nxc6 {[%clk 0:01:17]}  Qxc6+ {[%clk 0:02:00]} 0-1


[Site "https://www.chess.com"]

[Event "Titled Tuesday Blitz May 23 Late 2023"]
[White "dorpato"]
[Black "Gatterer, Florian"]
[BlackFideId "811688"]
[WhiteElo "2046"]
[BlackElo "2221"]
[Result "0-1"]
[Round "02"]
[TimeControl "180+2"]
[Date "2023.05.23"]
[WhiteClock "0:00:04"]
[BlackClock "0:01:15"]

1. e4 {[%clk 0:03:00]}  d6 {[%clk 0:03:00]} 2. Nf3 {[%clk 0:02:51]}  Nf6 {[%clk 0:03:00]} 3. Nc3 {[%clk 0:02:44]}  c5 {[%clk 0:02:59]} 4. Bc4 {[%clk 0:02:39]}  g6 {[%clk 0:02:54]} 5. O-O {[%clk 0:02:35]}  Bg7 {[%clk 0:02:54]} 6. d3 {[%clk 0:02:29]}  O-O {[%clk 0:02:53]} 7. h3 {[%clk 0:02:27]}  a6 {[%clk 0:02:52]} 8. Be3 {[%clk 0:02:19]}  b5 {[%clk 0:02:50]} 9. Bb3 {[%clk 0:02:19]}  Nc6 {[%clk 0:02:49]} 10. a3 {[%clk 0:02:04]}  Bb7 {[%clk 0:02:49]} 11. Qd2 {[%clk 0:01:57]}  Rc8 {[%clk 0:02:47]} 12. Bh6 {[%clk 0:01:41]}  e6 {[%clk 0:02:39]} 13. Bxg7 {[%clk 0:01:33]}  Kxg7 {[%clk 0:02:40]} 14. Ne2 {[%clk 0:01:32]}  d5 {[%clk 0:02:33]} 15. exd5 {[%clk 0:01:25]}  exd5 {[%clk 0:02:33]} 16. c3 {[%clk 0:01:25]}  c4 {[%clk 0:02:28]} 17. Bc2 {[%clk 0:01:14]}  Re8 {[%clk 0:02:18]} 18. Ng3 {[%clk 0:01:11]}  h6 {[%clk 0:02:15]} 19. d4 {[%clk 0:01:06]}  Ne4 {[%clk 0:02:02]} 20. Nxe4 {[%clk 0:01:03]}  dxe4 {[%clk 0:02:03]} 21. Nh2 {[%clk 0:01:01]}  f5 {[%clk 0:02:02]} 22. Rfe1 {[%clk 0:01:01]}  Qg5 {[%clk 0:01:49]} 23. Qxg5 {[%clk 0:00:54]}  hxg5 {[%clk 0:01:49]} 24. Re2 {[%clk 0:00:53]}  Ne7 {[%clk 0:01:48]} 25. Rae1 {[%clk 0:00:43]}  Nd5 {[%clk 0:01:40]} 26. f3 {[%clk 0:00:38]}  Nf4 {[%clk 0:01:39]} 27. Re3 {[%clk 0:00:19]}  Nd3 {[%clk 0:01:39]} 28. Bxd3 {[%clk 0:00:19]}  cxd3 {[%clk 0:01:39]} 29. fxe4 {[%clk 0:00:18]}  fxe4 {[%clk 0:01:27]} 30. Nf1 {[%clk 0:00:18]}  Bd5 {[%clk 0:01:23]} 31. Nd2 {[%clk 0:00:18]}  g4 {[%clk 0:01:21]} 32. Nxe4 {[%clk 0:00:17]}  gxh3 {[%clk 0:01:19]} 33. gxh3 {[%clk 0:00:17]}  Bxe4 {[%clk 0:01:18]} 34. Rxe4 {[%clk 0:00:14]}  d2 {[%clk 0:01:18]} 35. Rxe8 {[%clk 0:00:09]}  Rxe8 {[%clk 0:01:16]} 36. Rd1 {[%clk 0:00:04]}  Re1+ {[%clk 0:01:15]} 0-1


[Site "https://www.chess.com"]